bitfinex-derivatives/quotes_SOLF0:USTF0_20250821
["timestamp","ask_amount","ask_price","bid_price","bid_amount"]
[1755783565555,3.06,185.15,185.0,2.94]
[1755783565858,3.06,185.11,185.01,1.84372053]
[1755783566059,3.06,185.11,185.0,2.94]
[1755783566255,3.06,185.11,185.01,1.84242352]
[1755783566554,3.06,185.11,185.0,2.94]
[1755783566758,3.06,185.11,185.01,1.841345]
[1755783566965,3.06,185.15,185.02,1.8412834]
[1755783567160,3.06,185.15,185.0,2.94]
[1755783567359,3.06,185.15,185.01,1.84059293]
[1755783567559,3.06,185.15,185.02,1.84059293]
[1755783567755,3.06,185.15,185.0,2.94]
[1755783567963,3.06,185.15,185.01,1.84052895]
[1755783568164,3.06,185.15,185.02,4.78037853]
[1755783568352,3.06,185.15,185.02,2.94]
[1755783569258,3.06,185.15,185.03,1.83885886]
[1755783569464,3.06,185.15,185.04,4.77786805]
[1755783569665,145.16,185.16,185.06,2.94]
[1755783570762,148.22,185.16,185.06,2.94]
[1755783571769,3.06,185.2,185.06,2.94]
[1755783571964,3.06,185.2,185.07,1.83613866]
[1755783572161,3.06,185.2,185.06,2.94]
[1755783572362,8.45406992,185.2,185.06,2.94]
[1755783573369,3.06,185.19,185.06,2.94]
[1755783573667,3.06,185.19,185.07,1.83562505]
[1755783573864,3.06,185.19,185.08,1.83562505]
[1755783574066,3.06,185.19,185.06,2.94]
[1755783574263,3.06,185.19,185.07,2.94]
[1755783574462,3.06,185.19,185.08,1.83544401]
[1755783574756,3.06,185.19,185.1,2.94]
[1755783574961,5.39406992,185.24,185.12,5.39406992]
[1755783574962,3.06,185.24,185.12,5.39406992]
[1755783575267,3.06,185.24,185.13,4.77417368]
[1755783575469,3.06,185.24,185.13,2.94]
[1755783576569,144.76,185.25,185.13,2.94]
[1755783576768,144.76,185.25,185.14,5.4019]
[1755783577071,144.76,185.25,185.03,10.8099]
[1755783577072,144.76,185.25,185.16,2.94]
[1755783577269,3.06,185.27,185.16,2.94]
[1755783577567,3.06,185.26,185.08,2.94]
[1755783577771,3.06,185.26,185.1,8.33406992]
[1755783577968,3.06,185.26,185.11,1.83411617]
[1755783578167,3.06,185.26,185.12,1.83411617]
[1755783578363,3.06,185.26,185.13,1.83411617]
[1755783578672,3.06,185.26,185.14,4.77411617]
[1755783578866,3.06,185.3,185.18,5.4005]
[1755783579078,3.06,185.3,185.2,2.94]
[1755783579466,3.06,185.3,185.21,1.83312556]
[1755783579662,3.06,185.3,185.2,2.94]
[1755783580371,3.06,185.3,185.16,5.39406992]
[1755783580372,3.06,185.35,185.23,2.94]
[1755783580669,3.06,185.34,185.18,2.94]
[1755783580874,3.06,185.32,185.19,1.83307707]
[1755783581169,3.06,185.32,185.18,8.33406992]
[1755783581374,3.06,185.32,185.19,1.83387132]
[1755783581572,3.06,185.32,185.18,8.33406992]
[1755783581872,5.39406992,185.3,185.19,1.83475265]
[1755783582071,3.06,185.32,185.18,2.94]
[1755783582267,3.06,185.32,185.19,1.83477215]
[1755783582466,3.06,185.29,185.18,2.94]
[1755783582664,3.06,185.29,185.19,1.8359704]
[1755783582974,3.06,185.29,185.18,2.94]
[1755783583177,3.06,185.29,185.19,1.83616651]
[1755783583375,3.06,185.29,185.2,1.83616651]
[1755783583670,5.39406992,185.3,185.18,2.94]
[1755783583875,8.45406992,185.33,185.19,4.77712335]
[1755783584076,8.45406992,185.33,185.2,1.83712335]
[1755783584272,3.06,185.33,185.21,1.83712335]
[1755783584470,3.06,185.33,185.22,1.83773803]
[1755783584774,3.06,185.33,185.23,1.83734696]
[1755783585070,3.06,185.33,185.19,2.94]
[1755783585274,3.06,185.33,185.2,1.83804913]
[1755783585468,3.06,185.33,185.21,4.77804913]
[1755783585666,3.06,185.33,185.22,1.83804913]
[1755783585876,3.06,185.33,185.24,2.94]
[1755783586072,8.45406992,185.37,185.24,2.94]
[1755783586472,5.39406992,185.37,185.24,2.94]
[1755783586679,5.39406992,185.31,185.2,2.94]
[1755783586876,5.39406992,185.31,185.21,1.83902782]
[1755783587077,5.39406992,185.31,185.22,1.83927234]
[1755783587272,5.39406992,185.31,185.21,1.83902782]
[1755783587273,3.06,185.3,185.21,1.83902782]
[1755783587475,5.39406992,185.28,185.21,1.83902782]
[1755783588577,5.39406992,185.28,185.22,1.84180425]
[1755783588770,5.39406992,185.28,185.21,1.83902782]
[1755783588970,3.06,185.3,185.22,1.84152701]
[1755783589170,3.06,185.3,185.21,1.83902782]
[1755783589381,3.06,185.3,185.22,1.84151929]
[1755783589577,5.39406992,185.28,185.21,1.83902782]
[1755783590578,3.06,185.27,185.21,1.83902782]
[1755783590973,5.39406992,185.25,185.21,1.83902782]
[1755783591177,3.06,185.24,185.21,1.83902782]
[1755783591377,3.06,185.23,185.21,1.83902782]
[1755783591575,3.06,185.24,185.21,1.83902782]
[1755783591782,3.06,185.23,185.21,1.83902782]
[1755783592086,3.06,185.24,185.21,1.83902782]
[1755783592273,5.39406992,185.25,185.21,1.83902782]
[1755783592477,3.06,185.22,185.21,1.83902782]
[1755783592677,8.45406992,185.22,185.21,1.83902782]
[1755783593674,143.7,185.29,185.21,1.83902782]
[1755783593675,5.39406992,185.29,185.21,1.83902782]
[1755783593874,3.01,185.3,185.21,1.83902782]
[1755783595386,5.39406992,185.32,185.22,1.84314749]
[1755783595587,3.01,185.34,185.23,1.84314749]
[1755783595786,3.01,185.34,185.24,1.84314749]
[1755783595984,3.01,185.34,185.25,1.84314749]
[1755783596185,3.01,185.34,185.23,3.05]
[1755783596389,3.01,185.34,185.24,1.84208752]
[1755783596587,5.39406992,185.32,185.23,3.05]
[1755783596884,3.01,185.31,185.21,1.83902782]
[1755783597077,3.01,185.31,185.22,1.84214969]
[1755783597277,3.01,185.31,185.21,1.83902782]
[1755783597684,3.01,185.31,185.22,1.84201817]
[1755783597881,3.01,185.31,185.21,1.83902782]
[1755783598284,5.39406992,185.29,185.21,1.83902782]
[1755783598482,3.01,185.31,185.22,4.89204419]
[1755783598684,3.01,185.31,185.22,3.05]
[1755783598981,3.01,185.35,185.22,3.05]
[1755783599180,8.40406992,185.35,185.23,1.84179323]
[1755783599381,8.40406992,185.35,185.24,1.84179323]
[1755783599682,8.40406992,185.35,185.22,3.05]
[1755783599881,8.40406992,185.35,185.23,1.84149128]
[1755783600082,149.03406992,185.38,185.25,3.05]
[1755783600282,5.39406992,185.35,185.26,1.84149128]
[1755783600588,5.39406992,185.35,185.25,3.05]
[1755783600790,5.39406992,185.35,185.26,1.8418695]
[1755783601091,5.39406992,185.35,185.25,3.05]
[1755783601391,5.39406992,185.35,185.26,1.8417821]
[1755783601589,5.39406992,185.32,185.21,4.88902782]
[1755783601884,5.39406992,185.32,185.22,1.8424357]
[1755783602084,5.39406992,185.26,185.21,1.83902782]
[1755783602482,5.39406992,185.29,185.21,4.88902782]
[1755783602681,5.39406992,185.29,185.22,1.84309198]
[1755783602886,8.40406992,185.31,185.21,4.88902782]
[1755783603086,8.40406992,185.31,185.22,1.84276246]
[1755783603283,3.01,185.27,185.21,1.83902782]
[1755783604494,3.01,185.31,185.21,1.83902782]
[1755783604693,3.01,185.27,185.21,1.83902782]
[1755783605391,3.01,185.23,185.12,3.05]
[1755783605783,3.01,185.23,185.08,3.05]
[1755783606195,3.01,185.23,185.1,5.4029]
[1755783606391,3.01,185.23,185.07,363.1]
[1755783606392,3.01,185.23,185.11,3.05]
[1755783607688,3.01,185.19,185.07,366.15]
[1755783608587,3.01,185.19,185.01,80.67179934]
[1755783608792,3.01,185.15,185.03,3.05]
[1755783610094,3.01,185.15,184.98,3.05]
[1755783610395,3.01,185.15,184.9,6.02397131]
[1755783610396,3.01,185.02,184.84,3.05]
[1755783610589,3.01,184.98,184.84,3.05]
[1755783610989,3.01,184.94,184.84,3.05]
[1755783611193,3.01,184.94,184.79,3.05]
[1755783611597,3.01,184.9,184.74,3.05]
[1755783611892,3.01,184.86,184.69,3.05]
[1755783612494,3.01,184.82,184.69,3.99150749]
[1755783612694,8.86950945,184.79,184.64,3.05]
[1755783612894,3.01,184.79,184.64,3.05]
[1755783613697,3.01,184.79,184.65,5.4163]
[1755783613897,11.87950945,184.79,184.64,3.05]
[1755783615397,8.86950945,184.83,184.64,11.91950945]
[1755783615597,3.01,184.82,184.65,3.05]
[1755783615800,8.86950945,184.79,184.65,3.05]
[1755783615997,3.01,184.82,184.65,3.05]
[1755783616201,3.01,184.78,184.65,3.05]
[1755783616400,3.01,184.74,184.58,3.05]
[1755783616601,8.86950945,184.71,184.58,8.4683]
[1755783616794,8.86950945,184.71,184.58,3.05]
[1755783616995,8.86950945,184.71,184.59,5.4177]
[1755783617298,3.01,184.7,184.58,3.05]
[1755783618495,3.95266791,184.75,184.58,3.05]
[1755783618700,3.95266791,184.75,184.6,3.05]
[1755783618901,8.86950945,184.74,184.6,3.05]
[1755783619098,3.01,184.75,184.6,3.05]
[1755783619099,3.01,184.75,184.64,5.4164]
[1755783619304,3.01,184.75,184.6,3.05]
[1755783619505,11.87950945,184.8,184.6,3.05]
[1755783619706,3.01,184.8,184.64,3.05]
[1755783619909,3.01,184.8,184.67,8.86950945]
[1755783620204,11.87950945,184.8,184.61,3.05]
[1755783620407,8.86950945,184.76,184.61,3.05]
[1755783620705,0.94231056,184.81,184.65,8.86950945]
[1755783620901,363.2,184.82,184.66,3.05]
[1755783621298,363.2,184.82,184.74,5.4134]
[1755783621503,363.2,184.82,184.7,3.05]
[1755783621899,8.86950945,184.89,184.7,3.05]
[1755783622305,9.81142468,184.89,184.7,3.05]
[1755783622605,9.81142468,184.89,184.75,3.05]
[1755783622804,2.93,184.88,184.75,3.05]
[1755783623004,2.93,184.88,184.69,11.74950945]
[1755783623203,2.93,184.84,184.69,2.88]
[1755783623414,2.93,184.84,184.75,5.4132]
[1755783623611,2.93,184.84,184.69,2.88]
[1755783623811,2.93,184.84,184.7,2.88]
[1755783624009,8.86950945,184.88,184.7,2.88]
[1755783625811,8.86950945,184.88,184.77,5.4126]
[1755783626012,8.86950945,184.88,184.74,2.88]
[1755783626615,3.87191523,184.89,184.74,2.88]
[1755783626814,2.93,184.89,184.74,2.88]
[1755783627709,11.79950945,184.94,184.77,8.86950945]
[1755783627910,2.93,184.94,184.78,2.88]
[1755783628516,8.86950945,184.93,184.78,2.88]
[1755783628919,2.93,184.94,184.85,5.4101]
[1755783629120,2.93,184.94,184.83,2.88]
[1755783629619,118.94433098,184.98,184.83,2.88]
[1755783630121,2.93,184.97,184.83,2.88]
[1755783630518,8.86950945,184.96,184.83,2.88]
[1755783630918,2.93,184.95,184.83,2.88]
[1755783632019,2.93,184.95,184.79,8.86950945]
[1755783632221,2.93,184.95,184.83,5.4107]
[1755783632517,2.93,184.95,184.8,2.88]
[1755783632823,2.93,184.95,184.85,5.4102]
[1755783633018,2.93,184.95,184.8,2.88]
[1755783633722,118.94433098,184.98,184.83,8.86950945]
[1755783633925,366.61,184.99,184.89,5.4091]
[1755783634115,366.61,184.99,184.88,2.88]
[1755783634314,2.93,184.99,184.88,2.88]
[1755783634921,2.93,184.99,184.89,5.4089]
[1755783635223,2.93,184.99,184.88,2.88]
[1755783635522,0.94120193,185.03,184.88,2.88]
[1755783635719,3.87120193,185.03,184.88,2.88]
[1755783636120,3.87120193,185.03,184.92,5.4082]
[1755783636619,3.87120193,185.03,184.88,2.88]
[1755783636826,2.93,185.03,184.88,2.88]
[1755783637124,2.93,185.03,184.89,5.4089]
[1755783637320,2.93,185.03,184.88,2.88]
[1755783637626,2.93,185.01,184.9,5.4088]
[1755783637813,2.93,185.01,184.88,2.88]
[1755783638515,2.93,185.01,184.83,2.88]
[1755783638824,2.93,184.97,184.83,2.88]
[1755783639026,8.86950945,184.98,184.79,2.88]
[1755783639027,2.93,184.93,184.79,2.88]
[1755783639822,11.79950945,184.98,184.79,2.88]
[1755783640826,2.93,184.98,184.83,2.88]
[1755783641928,11.79950945,184.98,184.83,2.88]
[1755783642134,11.79950945,185.02,184.88,2.88]
[1755783642330,2.93,185.02,184.88,2.88]
[1755783643029,9.81058411,185.06,184.91,2.88]
[1755783643330,2.93,185.07,184.91,2.88]
[1755783643527,8.86950945,185.06,184.91,2.88]
[1755783643832,2.93,185.05,184.91,2.88]
[1755783644127,2.93,185.05,184.95,5.4072]
[1755783644331,2.93,185.05,184.91,2.88]
[1755783645627,0.94093472,185.09,184.91,2.88]
[1755783645828,0.94093472,185.09,184.95,2.88]
[1755783646026,2.93,185.1,184.99,2.88]
[1755783652534,11.79950945,185.02,184.89,2.88]
[1755783653034,2.93,185.02,184.89,2.88]
[1755783653534,2.81,185.07,184.89,2.88]
[1755783653740,2.81,185.07,184.98,5.4063]
[1755783654136,2.81,185.07,184.96,3.05]
[1755783654438,2.81,185.07,184.99,5.406]
[1755783654638,2.81,185.07,184.96,3.05]
[1755783654839,2.81,185.07,184.99,5.406]
[1755783655142,2.81,185.12,184.96,3.05]
[1755783655441,2.81,185.12,184.95,8.86950945]
[1755783655442,2.81,185.12,185.02,5.4051]
[1755783655737,2.81,185.12,185.0,3.05]
[1755783656234,2.81,185.12,184.95,3.05]
[1755783657039,2.81,185.08,184.95,3.05]
[1755783658640,2.81,185.06,184.95,3.05]
[1755783660341,2.81,185.1,184.95,3.05]
[1755783660531,8.86950945,185.09,184.95,3.05]
[1755783660733,8.86950945,185.09,184.86,508.02]
[1755783660734,8.86950945,185.05,184.89,3.05]
[1755783661037,8.86950945,185.09,184.89,3.05]
[1755783661038,2.81,185.0,184.89,3.05]
[1755783661243,2.81,185.0,184.86,363.54]
[1755783661435,2.81,184.96,184.84,3.05]
[1755783663140,2.81,184.96,184.86,5.4097]
[1755783663334,2.81,184.96,184.84,3.05]
[1755783664045,2.81,184.95,184.79,3.05]
[1755783664241,11.67950945,184.92,184.79,3.05]
[1755783664740,8.86950945,184.96,184.81,3.05]
[1755783665546,2.81,184.97,184.81,3.05]
[1755783665733,2.81,184.97,184.88,5.4092]
[1755783665937,2.81,184.97,184.85,3.05]
[1755783666535,0.94136742,185.01,184.85,8.86950945]
[1755783666737,366.11,185.02,184.93,5.4077]
[1755783666942,366.11,185.02,184.9,3.05]
[1755783667742,366.11,185.02,184.85,3.05]
[1755783667743,2.81,184.99,184.85,3.05]
[1755783668142,2.81,184.99,184.85,8.86950945]
[1755783668446,2.81,184.99,184.86,3.05]
[1755783668842,2.81,184.99,184.87,5.4097]
[1755783669043,2.81,184.99,184.86,3.05]
[1755783669433,2.81,184.99,184.89,5.4091]
[1755783669837,2.81,184.99,184.86,3.05]
[1755783671243,2.81,184.99,184.89,5.4091]
[1755783671548,2.81,184.99,184.86,3.05]
[1755783671744,8.86950945,185.01,184.86,3.05]
[1755783672247,8.86950945,185.01,184.89,5.4091]
[1755783672449,8.86950945,185.01,184.86,3.05]
[1755783673243,366.11,185.02,184.86,3.05]
[1755783673449,2.81,185.02,184.86,3.05]
[1755783673950,8.86950945,185.05,184.86,3.05]
[1755783674146,2.81,185.07,184.9,3.05]
[1755783674340,2.81,185.07,184.95,3.05]
[1755783674743,2.81,185.07,184.97,5.4065]
[1755783674948,8.86950945,185.06,184.9,3.05]
[1755783675145,2.81,185.05,184.9,3.05]
[1755783676356,2.81,185.05,184.93,5.4079]
[1755783676650,2.81,185.05,184.9,3.05]
[1755783676651,2.81,185.04,184.9,3.05]
[1755783677950,2.81,185.04,184.93,5.4077]
[1755783678347,2.81,185.04,184.9,3.05]
[1755783678750,2.81,185.01,184.85,366.45]
[1755783679146,2.81,185.01,184.89,3.05]
[1755783679752,2.81,185.01,184.93,3.05]
[1755783680152,8.86950945,185.04,184.94,5.4076]
[1755783680547,2.81,185.05,184.93,3.05]
[1755783681052,8.86950945,185.08,184.93,3.05]
[1755783681257,2.81,185.11,184.97,3.05]
[1755783682359,0.94064223,185.18,185.04,8.86950945]
[1755783682660,121.25110052,185.21,185.05,3.05]
[1755783682864,121.25110052,185.21,185.09,5.4033]
[1755783683056,118.44110052,185.21,185.05,3.05]
[1755783683261,3.03,185.18,185.05,3.05]
[1755783684466,3.03,185.14,185.0,3.05]
[1755783686463,3.03,185.19,185.01,3.05]
[1755783686860,128.25080747,185.21,185.05,3.05]
[1755783687260,127.31060997,185.21,185.05,3.05]
[1755783687861,127.31060997,185.21,185.07,5.4036]
[1755783688160,127.31060997,185.21,185.05,3.05]
[1755783688356,118.44110052,185.21,185.08,5.4034]
[1755783688655,118.44110052,185.21,185.09,3.05]
[1755783689460,3.03,185.2,185.09,3.05]
[1755783690559,3.03,185.2,185.05,3.05]
[1755783691067,8.86950945,185.2,185.05,3.05]
[1755783691268,3.03,185.19,185.05,3.05]
[1755783691465,3.03,185.15,185.0,11.91950945]
[1755783691660,3.03,185.15,185.0,17.32520945]
[1755783691867,3.03,185.15,185.01,3.05]
[1755783692768,3.03,185.19,185.06,3.05]
[1755783693869,118.44110052,185.21,185.11,3.05]
[1755783694168,3.03,185.2,185.11,3.05]
[1755783695867,3.03,185.25,185.11,3.05]
[1755783696664,3.03,185.25,185.08,8.86950945]
[1755783696665,3.03,185.3,185.12,8.86950945]
[1755783696971,3.03,185.3,185.16,5.4011]
[1755783697171,3.03,185.3,185.13,3.05]
[1755783697671,3.03,185.3,185.18,3.05]
[1755783697871,3.03,185.3,185.12,8.86950945]
[1755783697872,3.03,185.3,185.14,3.05]
[1755783699471,364.19976587,185.32,185.14,3.05]
[1755783699472,3.03,185.26,185.14,3.05]
[1755783701175,3.03,185.26,185.14,8.4516]
[1755783701378,3.03,185.26,185.14,3.05]
[1755783702384,3.03,185.26,185.08,8.86950945]
[1755783702385,3.03,185.26,185.09,3.05]
[1755783703182,3.03,185.22,185.04,447.6050213]
[1755783703381,8.86950945,185.23,185.04,447.6050213]
[1755783703382,3.03,185.18,185.04,447.6050213]
[1755783704280,3.03,185.18,185.05,3.05]
[1755783705184,11.89950945,185.23,185.05,3.05]
[1755783705576,11.89950945,185.23,185.09,5.4031]
[1755783705883,3.03,185.22,185.09,3.05]
[1755783706486,3.03,185.22,185.04,447.6050213]
[1755783706681,3.03,185.22,185.05,5.4044]
[1755783706879,3.03,185.22,185.04,447.6050213]
[1755783706880,3.03,185.17,185.04,447.6050213]
[1755783707288,11.89950945,185.22,185.05,3.05]
[1755783707687,11.89950945,185.22,185.1,5.403]
[1755783707884,3.03,185.22,185.09,3.05]
[1755783708184,3.03,185.22,185.11,5.4026]
[1755783708486,3.03,185.22,185.09,3.05]
[1755783709689,3.03,185.26,185.09,3.05]
[1755783709888,3.03,185.26,185.15,5.4013]
[1755783710292,3.03,185.26,185.14,3.05]
[1755783711585,3.03,185.31,185.14,3.05]
[1755783712587,3.03,185.31,185.23,5.3992]
[1755783712786,3.03,185.31,185.2,2.76]
[1755783713289,3.03,185.31,185.22,5.3995]
[1755783713490,3.03,185.31,185.2,2.76]
[1755783713993,3.03,185.31,185.17,2.76]
[1755783714893,3.03,185.31,185.23,5.399]
[1755783715089,3.03,185.31,185.21,2.76]
[1755783715894,3.03,185.31,185.21,8.1596]
[1755783716495,3.03,185.31,185.21,2.76]
[1755783717799,3.03,185.31,185.22,5.3994]
[1755783718097,3.03,185.31,185.21,2.76]
[1755783718298,3.03,185.31,185.23,5.399]
[1755783718500,3.03,185.31,185.21,2.76]
[1755783719595,3.03,185.31,185.22,5.3993]
[1755783719797,3.03,185.31,185.21,2.76]
[1755783720301,5.38523419,185.34,185.21,2.76]
[1755783720696,3.06,185.33,185.21,2.76]
[1755783721196,5.38523419,185.31,185.21,2.76]
[1755783721493,3.06,185.3,185.21,5.3998]
[1755783721698,3.06,185.3,185.17,2.76]
[1755783722098,5.38523419,185.25,185.12,2.76]
[1755783722801,3.06,185.24,185.12,2.76]
[1755783723700,5.38523419,185.25,185.12,2.76]
[1755783723899,8.44523419,185.28,185.14,2.76]
[1755783724092,8.44523419,185.28,185.13,5.38523419]
[1755783724293,8.44523419,185.28,185.17,2.76]
[1755783724497,5.38523419,185.25,185.17,2.76]
[1755783725297,5.38523419,185.25,185.13,5.38523419]
[1755783725298,5.38523419,185.25,185.13,2.76]
[1755783725500,5.38523419,185.22,185.13,2.76]
[1755783725798,8.44523419,185.22,185.09,2.76]
[1755783726096,5.38523419,185.16,185.09,2.76]
[1755783726302,5.38523419,185.16,185.05,2.76]
[1755783727100,5.38523419,185.13,185.05,2.76]
[1755783727604,3.06,185.15,185.05,2.76]
[1755783727804,5.38523419,185.13,185.05,2.76]
[1755783728198,3.06,185.15,185.05,2.76]
[1755783728597,3.06,185.15,185.05,8.1644]
[1755783728804,3.06,185.15,185.05,2.76]
[1755783729398,8.88191136,185.18,185.05,2.76]
[1755783730399,3.06,185.17,185.05,2.76]
[1755783730997,3.06,185.17,185.04,444.5550213]
[1755783731504,3.06,185.17,185.05,2.76]
[1755783731806,3.06,185.17,185.06,5.404]
[1755783732000,3.06,185.17,185.05,2.76]
[1755783732902,3.06,185.17,185.07,5.4039]
[1755783733099,3.06,185.17,185.05,2.76]
[1755783734006,3.06,185.13,185.04,444.5550213]
[1755783734601,3.06,185.13,185.04,81.5350213]
[1755783735110,11.94191136,185.18,185.05,2.76]
[1755783736200,11.94191136,185.18,185.07,5.4037]
[1755783736702,11.94191136,185.18,185.06,5.4041]
[1755783737307,11.94191136,185.18,185.05,8.1644]
[1755783737710,11.94191136,185.18,185.05,2.76]
[1755783739207,3.06,185.18,185.05,2.76]
[1755783739510,3.06,185.22,185.05,2.76]
[1755783740403,11.94191136,185.22,185.1,5.403]
[1755783740710,11.94191136,185.22,185.09,2.76]
[1755783741207,11.94191136,185.22,185.1,5.403]
[1755783741406,11.94191136,185.22,185.09,2.76]
[1755783741610,11.94191136,185.22,185.09,8.1631]
[1755783741805,11.94191136,185.22,185.09,2.76]
[1755783742403,3.06,185.21,185.05,2.76]
[1755783743205,8.88191136,185.18,185.05,2.76]
[1755783743401,3.05,185.17,185.05,2.76]
[1755783744911,3.05,185.22,185.09,5.4032]
[1755783745112,3.05,185.22,185.09,3.05]
[1755783747416,3.05,185.18,185.09,3.05]
[1755783747612,3.05,185.14,185.04,81.5350213]
[1755783747806,3.05,185.14,185.02,368.4452]
[1755783747807,3.05,185.14,185.02,363.04]
[1755783748211,8.88191136,185.11,185.0,3.05]
[1755783748409,11.93191136,185.11,185.0,3.05]
[1755783749616,3.05,185.1,184.96,3.05]
[1755783749817,143.7,185.18,184.96,3.05]
[1755783749818,3.05,185.06,184.96,3.05]
[1755783750713,3.05,185.11,184.96,3.05]
[1755783751216,3.05,185.11,184.98,5.4064]
[1755783751411,3.05,185.11,184.96,3.05]
[1755783752912,6.0709333,185.17,184.96,3.05]
[1755783752913,3.05,185.07,184.96,3.05]
[1755783753416,3.05,185.07,184.92,366.09]
[1755783754022,3.05,185.03,184.92,366.09]
[1755783754213,3.05,185.03,184.92,3.05]
[1755783754416,3.05,185.03,184.83,4.44822268]
[1755783754617,3.05,185.03,184.85,3.05]
[1755783755013,3.05,185.03,184.9,3.05]
[1755783756113,8.88191136,185.04,184.9,3.05]
[1755783756314,3.05,185.07,184.9,3.05]
[1755783756515,3.05,185.07,184.92,5.408]
[1755783756713,3.05,185.07,184.93,3.05]
[1755783756919,3.05,185.03,184.93,3.05]
[1755783757714,3.05,185.03,184.87,143.68]
[1755783757914,3.05,185.03,184.89,3.05]
[1755783758115,3.05,185.03,184.92,5.408]
[1755783758315,3.05,185.03,184.92,3.05]
[1755783759317,3.05,185.03,184.93,5.4079]
[1755783759816,3.05,185.16,184.92,3.05]
[1755783760020,11.93191136,185.16,184.99,8.88191136]
[1755783760219,11.93191136,185.16,185.0,3.05]
[1755783760911,3.05,185.16,185.0,3.05]
[1755783761513,3.05,185.16,185.03,3.05]
[1755783764623,3.05,185.16,185.05,5.4043]
[1755783764823,3.05,185.16,185.06,3.05]
[1755783765019,371.96639995,185.28,185.06,3.05]
[1755783765020,3.05,185.21,185.06,3.05]
[1755783765826,3.05,185.21,185.07,5.4036]
[1755783766125,3.05,185.21,185.06,3.05]
[1755783766328,3.05,185.21,185.09,3.05]
[1755783768834,3.05,185.26,185.09,3.05]
[1755783769132,3.05,185.26,185.12,3.05]
[1755783769926,3.05,185.26,185.13,5.4019]
[1755783770329,3.05,185.26,185.12,3.05]
[1755783773327,3.05,185.26,185.12,8.4524]
[1755783773626,3.05,185.26,185.12,3.05]
[1755783774138,2.79,185.23,185.12,3.05]
[1755783774431,2.79,185.23,185.08,2.83]
[1755783774634,8.88191136,185.2,185.08,2.83]
[1755783774832,2.79,185.19,185.08,2.83]
[1755783775429,2.79,185.19,185.03,2.83]
[1755783775927,8.88191136,185.17,185.03,2.83]
[1755783776530,8.88191136,185.17,184.99,2.83]
[1755783776728,2.79,185.19,185.03,2.83]
[1755783776929,2.79,185.19,185.08,2.83]
[1755783777632,2.79,185.16,184.99,2.83]
[1755783777832,8.88191136,185.25,184.99,2.83]
[1755783777833,2.79,185.12,184.99,2.83]
[1755783778528,17.98831131,185.25,184.99,2.83]
[1755783778529,2.79,185.16,184.99,2.83]
[1755783779143,2.79,185.16,184.98,372.04191136]
[1755783779144,2.79,185.16,185.03,5.405]
[1755783779435,2.79,185.16,185.04,2.83]